Cogmind - Beta 14 @@@ ROGUE MODE // 2024.09.05 @ 11:30:06 Player: Syanka Result: Destroyed by D-63 Destroyer with Heavy Rocket Launcher Performance ------------- Evolutions (6) 3000 Regions Visited (27) 5400 Robots Destroyed (374) 1870 Value Destroyed (13743) 13743 Prototype IDs (49) 980 Alien Tech Used (0) 0 Bonus (7236) 7236 TOTAL SCORE: 32229 Bonus ------- High Alert Combat Kills 748 Follower Combat Kills 1712 Awakened Behemoth Slayer 1000 Network Hubs Disabled 400 Met Data Miner 300 Met Imprinter 300 Destroyed Z-Imprinter 1000 Triggered Deep Caves Wall 500 Exposed GOLEM Chamber 500 Built Enhanced Grunts 300 A7 Reached Mainframe 300 Met R17 at Cetus 500 Friendly Fire -324 Cogmind --------- Core Integrity 0/1150 Matter 123/300 Energy 123/140 System Corruption 45% Temperature Cool (0) Movement Walking (150) Location -4/Armory Parts ------- > --- POWER (2) -------- Light Deuterium Engine > --- PROPULSION (5) --- Assembled Alloy Leg > --- UTILITY (10) ----- Advanced Cryofiber Web Assembled Nanovents Improved Terrain Scan Processor Advanced Transmission Jammer Assembled Alloy Armor Improved Recalibrator > --- WEAPON (2) ------- Railgun > --- INVENTORY (5) ---- Transmission Jammer System Shield Peak State ------------ > --- POWER ------------ Assembled Flux Generator > --- PROPULSION ------- Improved Medium Treads Centrium Heavy Treads Centrium Heavy Treads > --- UTILITY ---------- Assembled Nanovents Assembled Nanovents Huge Storage Unit Assembled Biocell Array Core Analyzer Transmission Jammer Centrium Medium Armor Plating Centrium Medium Armor Plating GOLEM Unit > --- WEAPON ----------- Assembled Focal Cannon Assembled Focal Cannon > --- INVENTORY -------- Heavy Treads Centrium Heavy Treads Centrium Heavy Treads Zionite Biocell Zionite Biocell Structural Scanner Core Analyzer Improved Medium Armor Plating Improved Medium Armor Plating Improved Heavy Armor Plating Centrium Medium Armor Plating Centrium Medium Armor Plating EM Disruption Field Advanced Hacking Suite Drone Bay GOLEM Unit Improved EM Pulse Cannon Improved EM Pulse Cannon Power Maul CR-A16's Behemoth Slayer [Rating: 161] Favorites ----------- Power Assembled Flux Generator Engine Reinforced Deuterium Engine Power Core Micro Fission Core Reactor Assembled Flux Generator Propulsion Light Treads Treads Light Treads Leg Assembled Alloy Leg Wheel Wheel Hover Unit Zionite Glidesys I Flight Unit Flying Fortress v7 Utility Huge Storage Unit Device GOLEM Unit Storage Huge Storage Unit Processor Improved Salvage Targeting Computer Hackware Makeshift Hacking Suite Protection Improved Medium Armor Plating Weapon Assembled Focal Cannon Energy Gun Improved Medium Laser Energy Cannon Assembled Focal Cannon Ballistic Gun Assault Rifle Ballistic Cannon Light Cannon Launcher Rocket Launcher Special Weapon RU-N14's Throwing Claymores Impact Weapon Power Maul Piercing Weapon CR-A16's Behemoth Slayer Build | -11 -10 -10 -9 -9 -9 -8 -8 -7 -7 -7 -7 -7 -6 -6 -6 -6 -6 -5 -5 -5 -5 -5 -5 -4 -4 -4 -4 ------- Run | Yrd Mat Min Mat Min Exi Min Mat Fac Low Low Zio Dee Pro Fac Low Low Dat Pro Fac Ext Cet Arc Hub Fac Was Fac Arm Slots Evolved 12 | . . . 2 . . . 2 2 . . . . . 2 . . . . 2 . . . . 2 . . . Power 1 | . . . . . . . . 1 . . . . . . . . . . . . . . . . . . . Propulsion 3 | . . . . . . . 2 . . . . . . . . . . . . . . . . 1 . . . Utility 8 | . . . 2 . . . . 1 . . . . . 2 . . . . 2 . . . . 1 . . . Weapon . | . . . . . . . . . . . . . . . . . . . . . . . . . . . . Parts Attached 556 | 7 31 24 97 5 2 4 51 42 7 21 15 69 6 21 11 8 4 5 17 18 16 . 18 4 13 28 12 Power 25 | 1 2 . 6 . . . 2 2 2 . . 4 . 1 . . . . . . . . . . . 2 3 Engine 16 | 1 2 . 6 . . . 2 2 1 . . 1 . . . . . . . . . . . . . . 1 Core 2 | . . . . . . . . . 1 . . . . . . . . . . . . . . . . . 1 Reactor 7 | . . . . . . . . . . . . 3 . 1 . . . . . . . . . . . 2 1 Propulsion 159 | 2 19 18 35 . . . 20 10 . 3 4 15 . 1 4 . 1 1 1 3 3 . 2 1 1 13 2 Treads 102 | . 11 10 21 . . . 20 7 . 2 4 7 . . 4 . . 1 1 3 3 . 2 1 1 4 . Leg 10 | . . . . . . . . . . . . 6 . 1 . . 1 . . . . . . . . . 2 Wheel 45 | 2 8 8 14 . . . . 3 . 1 . . . . . . . . . . . . . . . 9 . Hover 1 | . . . . . . . . . . . . 1 . . . . . . . . . . . . . . . Flight 1 | . . . . . . . . . . . . 1 . . . . . . . . . . . . . . . Utility 235 | 2 7 5 23 2 . . 11 21 4 15 3 23 6 16 5 6 3 4 15 15 7 . 16 3 9 10 4 Device 115 | 1 3 3 13 . . . 5 12 2 12 2 11 3 10 2 3 1 2 6 3 . . 5 1 3 9 3 Storage 13 | 1 1 . 1 . . . 1 . . . . 2 . 2 . . . . . 2 . . 1 . 1 1 . Processor 8 | . . . 2 1 . . 1 . 1 . . . . . . . . . . . . . 1 . 1 . 1 Hackware 14 | . . . . . . . . 3 . . . . . 3 . . . . 2 . 2 . 3 1 . . . Protection 85 | . 3 2 7 1 . . 4 6 1 3 1 10 3 1 3 3 2 2 7 10 5 . 6 1 4 . . Artifact . | . . . . . . . . . . . . . . . . . . . . . . . . . . . . Weapon 137 | 2 3 1 33 3 2 4 18 9 1 3 8 27 . 3 2 2 . . 1 . 6 . . . 3 3 3 Energy Gun 41 | . . . 19 2 2 2 9 . . 2 1 1 . 1 . . . . 1 . 1 . . . . . . Energy Cannon 38 | . . . . . . . 4 7 1 1 5 10 . 2 1 . . . . . 5 . . . 2 . . Ballistic Gun 15 | 2 1 1 2 . . . 4 . . . . . . . . . . . . . . . . . . 3 2 Ballistic Cannon 3 | . 1 . 1 . . . . . . . . . . . . . . . . . . . . . . . 1 Launcher 16 | . . . 6 . . 1 1 2 . . . 5 . . 1 . . . . . . . . . . . . Special Weapon 9 | . 1 . . . . . . . . . 1 7 . . . . . . . . . . . . . . . Impact Weapon 12 | . . . 5 1 . 1 . . . . 1 4 . . . . . . . . . . . . . . . Slashing Weapon . | . . . . . . . . . . . . . . . . . . . . . . . . . . . . Piercing Weapon 3 | . . . . . . . . . . . . . . . . 2 . . . . . . . . 1 . . Special Melee Weapon . | . . . . . . . . . . . . . . . . . . . . . . . . . . . . Unidentified Prototypes 26 | . . . 2 . . . 4 . . . 2 12 . 3 . . . . 1 . 2 . . . . . . Corrupted Parts 8 | . . . . . . . . . . . . . . . . . . . . . 2 . 2 . 1 3 . System Corruption 37 | . . . . . . . . . . . . . . . . . . . . . 16 . 11 . 2 8 . Parts Lost 96 | . . . 3 . . . 5 . . . . 8 1 . 1 1 4 1 . 7 . . 3 . 8 29 25 Power 8 | . . . 1 . . . . . . . . . . . . . 1 . . . . . . . . 3 3 Propulsion 22 | . . . 1 . . . 2 . . . . 2 . . . . 1 . . . . . . . . 9 7 Utility 49 | . . . 1 . . . 2 . . . . 5 1 . . 1 2 . . 5 . . 3 . 6 12 11 Weapon 17 | . . . . . . . 1 . . . . 1 . . 1 . . 1 . 2 . . . . 2 5 4 Highest Loss Streak 18 | . . . 1 . . . 3 . . . . 4 1 . 1 1 4 1 . 4 . . 1 . 5 12 18 To Critical Strikes 1 | . . . . . . . . . . . . . . . . . . . . . . . . . . 1 . Average Slot Usage (%) 88 | . 99 100 99 100 79 100 99 97 92 96 92 87 84 85 86 85 75 85 86 81 71 76 75 77 67 69 72 Engine 5 | . 14 14 11 11 11 11 9 13 15 15 15 1 . . . . . . . . . . . . . . . Reactor 3 | . . . . . . . . . . . . 10 7 5 6 6 6 6 5 5 4 5 5 5 5 4 4 Treads 15 | . 4 3 17 22 22 22 36 27 15 24 19 17 . . 24 26 14 5 5 8 10 11 11 15 11 5 . Leg 5 | . . . . . . . . . . . . 10 30 26 1 . 9 20 17 7 . . . . 3 5 8 Wheel 2 | . 23 24 4 . . . . 1 7 2 4 . . . . . . . . . . . . . . 6 11 Device 15 | . 7 11 15 11 11 11 9 15 16 15 15 13 14 16 24 24 18 16 19 18 11 11 12 17 14 22 27 Storage 10 | . 14 14 11 11 11 11 9 7 7 7 7 10 15 12 13 13 13 13 11 11 11 11 11 10 8 5 3 Processor 2 | . . . 9 11 11 11 9 2 . . . . . . . . . . . . . . 3 5 7 5 2 Protection 9 | . 6 2 8 11 11 11 8 11 13 14 15 6 . . 1 1 7 9 9 15 21 23 16 12 6 3 5 Energy Gun 3 | . . . 20 22 2 21 11 1 . . . . . . . . . . . . . . . . . . . Energy Cannon 8 | . . . . . . . 4 13 15 14 13 11 15 12 13 12 4 13 10 10 7 11 11 10 6 8 5 Ballistic Gun 1 | . 18 14 . . . . 2 . . . . . . . . . . . . . . . . . . . 2 Peak Build Rating 161 | 7 8 10 22 26 26 27 34 52 54 59 60 112 114 132 119 109 113 120 145 144 147 148 152 161 158 155 129 Average Rating 76 | 5 7 9 19 23 20 26 31 46 51 51 54 77 112 118 102 102 93 113 132 127 131 147 146 157 134 117 99 On Entrance 79 | . 7 8 10 20 26 26 26 34 48 52 56 53 111 113 119 100 102 91 112 135 133 147 148 147 158 149 89 Naked Turns . | . . . . . . . . . . . . . . . . . . . . . . . . . . . . Heaviest Build 189 | 13 31 32 41 40 40 40 106 141 142 146 139 154 154 158 162 162 170 163 187 189 180 180 180 180 172 163 83 Greatest Support 190 | 20 40 40 46 40 40 40 83 84 28 84 82 108 108 108 108 96 96 84 104 160 160 160 160 190 190 160 80 Greatest Overweight (x) 59 | . 10 1 3 . . . 1 5 5 5 6 50 1 1 2 53 53 54 1 2 59 59 1 . . 24 21 Average Overweight (x) 1 | . 1 . . . . . . 1 4 2 3 1 1 . 1 1 5 2 1 1 1 17 1 . . 2 1 Largest Inventory Capacity 25 | 8 15 15 15 15 15 15 25 25 25 25 25 25 25 25 25 25 25 25 25 25 25 25 25 25 25 25 5 Average Capacity 21 | 7 14 15 15 15 15 15 17 25 25 25 25 25 25 25 25 25 25 25 25 25 25 25 25 25 20 10 5 Most Carried 25 | 7 15 15 15 15 15 15 23 25 25 25 25 25 25 25 25 23 22 21 25 25 25 25 25 25 24 18 5 Average Carried 20 | 4 14 14 14 14 15 15 16 24 24 24 24 23 23 23 21 21 21 20 23 24 24 24 24 23 14 7 3 Final Capacity 25 | 8 15 15 15 15 15 15 25 25 25 25 25 25 25 25 25 25 25 25 25 25 25 25 25 25 25 5 5 Final Carried 25 | 7 15 15 15 15 15 15 23 25 24 25 24 25 23 25 21 22 21 21 25 25 25 25 25 25 16 5 2 Class Distribution -------------------- 39% | Mutant 29% | Golem 13% | Scavenger-Mutant 12% | Scavenger-Golem 3% | Hacker-Golem Dominant Class ---------------- Mutant | -10/Materials Mutant | -10/Mines Mutant | -9/Materials Mutant | -9/Mines Mutant | -9/Exiles Mutant | -8/Mines Mutant | -8/Materials Mutant | -7/Factory Mutant | -7/Lower Caves Mutant | -7/Lower Caves Mutant | -7/Zion Scavenger-Mutant | -7/Deep Caves Golem | -6/Proximity Caves Hacker-Golem | -6/Factory Golem | -6/Lower Caves Golem | -6/Lower Caves Golem | -6/Data Miner Golem | -5/Proximity Caves Golem | -5/Factory Golem | -5/Extension Scavenger-Golem | -5/Cetus Scavenger-Golem | -5/Archives Scavenger-Golem | -5/Hub_04(d) Scavenger-Golem | -4/Factory Scavenger-Golem | -4/Waste Scavenger-Golem | -4/Factory Scavenger-Golem | -4/Armory Resources | -11 -10 -10 -9 -9 -9 -8 -8 -7 -7 -7 -7 -7 -6 -6 -6 -6 -6 -5 -5 -5 -5 -5 -5 -4 -4 -4 -4 ----------- Run | Yrd Mat Min Mat Min Exi Min Mat Fac Low Low Zio Dee Pro Fac Low Low Dat Pro Fac Ext Cet Arc Hub Fac Was Fac Arm Matter Collected 8104 | 326 825 353 1153 80 . 40 888 349 208 290 150 830 151 217 159 195 . 154 188 289 272 73 332 . 200 210 172 Remotely 112 | . 112 . . . . . . . . . . . . . . . . . . . . . . . . . . Salvage Created 20200 | 137 554 216 1717 162 . 204 1609 1216 170 239 . 1588 209 1778 366 433 . 291 1296 2829 256 322 1366 . 1587 1159 496 Parts 878 | 15 45 9 123 7 . 14 87 56 1 8 . 21 12 63 14 17 . 6 73 99 11 21 77 . 26 44 29 Haulers Intercepted 18 | . . . 4 . . . 6 2 . . . . . 3 . . . . 1 2 . . . . . . . Recyclers Shooed 8 | . . . 1 . . 1 . . . . . . . 2 . . . . . 2 . . . . . 2 . Parts Field Recycled . | . . . . . . . . . . . . . . . . . . . . . . . . . . . . Retrieved Matter . | . . . . . . . . . . . . . . . . . . . . . . . . . . . . Parts Self-Destructed 55 | . . . . . . . . . . 8 1 . 12 . 14 15 . 5 . . . . . . . . . Prevented 1 | . . . . . . . . . . 1 . . . . . . . . . . . . . . . . . Kills | -11 -10 -10 -9 -9 -9 -8 -8 -7 -7 -7 -7 -7 -6 -6 -6 -6 -6 -5 -5 -5 -5 -5 -5 -4 -4 -4 -4 ------- Run | Yrd Mat Min Mat Min Exi Min Mat Fac Low Low Zio Dee Pro Fac Low Low Dat Pro Fac Ext Cet Arc Hub Fac Was Fac Arm Combat Hostiles Destroyed 314 | . 14 4 41 2 . 6 23 19 . 6 . 56 6 13 10 8 . 4 17 31 3 . 17 . 6 22 6 Melee 7 | . . . . . . . . . . . . 6 . . . . . . . . . . . . . 1 . Guns 67 | . 10 1 31 2 . 3 15 . . . . . . . . . . . . . . . . . . 2 3 Cannons 171 | . 4 3 1 . . . 7 10 . 5 . 7 6 12 10 7 . 4 17 31 2 . 17 . 6 19 3 AOE 54 | . . . 7 . . 3 1 6 . . . 37 . . . . . . . . . . . . . . . Classes Destroyed 26 | 2 5 1 4 . . 1 1 1 . . . 4 1 . . 1 . . . 1 . . 1 . 1 1 1 Worker 20 | . . . 4 . . 1 . 5 . . . . . . . . . . 2 . . . 6 . . 2 . Builder 13 | . 1 . 2 . . . 2 1 . . . . . . . . . . 3 1 . . 1 . . 2 . Tunneler 8 | 5 . . 1 . . . . . . . . . . 1 . . . . . . . . 1 . . . . Hauler 18 | . . . 4 . . . 6 2 . . . . . 3 . . . . 1 2 . . . . . . . Recycler 18 | 1 2 1 2 . . . . . . . . . . 6 . . . . . 3 . . . . . 3 . Mechanic 4 | . . . 2 . . . 1 . . . . . . . . . . . 1 . . . . . . . . Operator 15 | . 1 . 1 . . . . . . . . . . 2 . . . . . . . 9 . . . . 2 Drone 2 | . . . . . . . . . . . . . 2 . . . . . . . . . . . . . . Watcher 19 | . 3 . 5 . . . 3 . . . . . . . . . . . 1 3 1 . 3 . . . . Swarmer 54 | . 9 . 14 . . 3 3 4 . 3 . . 1 3 7 3 . . . . . . 1 . . 3 . Grunt 87 | . 5 2 16 2 . 2 7 7 . 2 . . 1 5 2 4 . 2 8 18 1 . 2 . . . 1 Brawler 8 | . . . 1 . . . 1 1 . . . . . . . . . 1 1 1 . . 2 . . . . Duelist 4 | . . . . . . 1 . . . . . . . 1 . . . . . . . . 2 . . . . Protector 1 | . . . . . . . . . . . . . . . . . . . . 1 . . . . . . . Sentry 43 | . . 2 10 . . . 8 4 . 1 . . 1 1 1 . . 1 1 9 . . 4 . . . . Demolisher 2 | . . . . . . . . . . . . . . . . . . . . . . . . . . 2 . Specialist 2 | . . . . . . . . . . . . . . . . . . . . . . . . . . . 2 Hunter 17 | . . . . . . . 4 . . . . . 1 . . . . . 4 . . . 4 . . 2 2 Programmer 15 | . . . . . . . . 3 . . . . . 3 . . . . 3 . . . 1 . . 5 . Heavy 2 | . . . . . . . . . . . . . . . . . . . . . . . 1 . . . 1 Behemoth 3 | . . . . . . . . . . . . . . . . 1 . . . 2 . . . . . . . Compactor 6 | . . . . . . . . . . . . . . . . . . . . . . . . . 6 . . Cetus Guard 2 | . . . . . . . . . . . . . . . . . . . . . 2 . . . . . . Z-Technician 4 | . . . . . . . . . . . . 4 . . . . . . . . . . . . . . . Z-Light 6 | . . . . . . . . . . . . 6 . . . . . . . . . . . . . . . Decomposer 1 | . . . . . . . . . 1 . . . . . . . . . . . . . . . . . . Packrat 2 | . . . . . . . . . 2 . . . . . . . . . . . . . . . . . . Assembler 2 | . . . . . . . . . . . . 2 . . . . . . . . . . . . . . . Assembled 47 | . . . . . . . . . . . . 37 . . . . . . . . . . . . . 10 . Golem 12 | . . . . . . . . . . . . 12 . . . . . . . . . . . . . . . Best Kill Streak 38 | 5 4 1 9 2 . 3 4 10 . 3 . 38 3 3 4 2 . 3 5 6 2 4 5 . 5 12 3 Combat Bots Only 36 | . 3 1 7 2 . 3 4 5 . 3 . 36 3 3 4 2 . 3 4 6 2 . 4 . 5 11 3 Max Kills in Single Turn 27 | 1 2 1 4 1 . 3 2 3 1 1 . 27 1 2 1 1 . 1 2 2 1 1 4 . 1 1 1 Gunslinging 1 | . . . 1 . . . . . . . . . . . . . . . . . . . . . . . . Exploded 26 | . . . 2 . . 3 1 2 . . . 26 . . . . . . . . . . . . . . . Melee 1 | . . . . . . . . . . . . 1 . . . . . . . . . . . . . 1 . Uniques/NPCs Destroyed 1 | . . . . . . . . . . . . 1 . . . . . . . . . . . . . . . Z-Imprinter (-7/Deep Caves) Combat | -11 -10 -10 -9 -9 -9 -8 -8 -7 -7 -7 -7 -7 -6 -6 -6 -6 -6 -5 -5 -5 -5 -5 -5 -4 -4 -4 -4 -------- Run | Yrd Mat Min Mat Min Exi Min Mat Fac Low Low Zio Dee Pro Fac Low Low Dat Pro Fac Ext Cet Arc Hub Fac Was Fac Arm Hostile Shots Fired 2621 | . 58 30 108 9 . 19 165 234 . 63 . 124 83 101 82 75 55 26 117 228 22 3 106 . 21 422 470 Missed 871 | . 15 10 21 3 . 6 43 94 . 16 . 35 29 28 38 20 18 9 33 73 11 . 22 . . 114 233 Damage Taken 29331 | . 417 280 1108 60 . 191 1931 1401 . 251 . 2653 642 1200 416 728 1542 340 736 2816 210 59 2272 . 915 5886 3277 Core 3219 | . 83 26 212 27 . 34 252 130 . 9 . 340 86 204 8 91 128 64 109 139 53 . 60 . . 605 559 Absorbed by Shields 1902 | . . . . . . . . 446 . 172 . 210 . 15 164 262 177 . 259 137 60 . . . . . . Reduced by Siege Mode 550 | . . . . . . . . . . . . . . . . . . . . . . . 59 . 144 347 . Redirected to Shielding 254 | . 4 6 26 . . . . . . . . 218 . . . . . . . . . . . . . . . Ignored by Resistances 2326 | . . . . . . . . . . . . . . . . . . . 316 636 55 13 105 . 137 864 200 Regen/Repaired (Parts) 898 | . 15 . 209 . . . 194 155 . . . . . . . . . . 325 . . . . . . . . Core Remaining (%) 52 | 100 . 56 . . . 31 54 . . . . . 19 . . . . 41 . . . . 63 . . . . Volleys Fired 1096 | 14 47 18 103 5 . 14 108 59 4 33 . 50 45 65 22 21 18 15 48 119 18 29 62 1 38 87 53 Largest 2 | 2 2 2 2 2 . 2 2 2 2 2 . 2 2 2 2 2 2 2 2 2 2 2 2 2 2 2 2 Hottest 160 | 40 100 58 126 112 . 112 141 160 145 145 . 155 50 90 94 50 50 50 50 50 138 50 50 50 94 50 88 Shots Fired 1960 | 28 93 36 207 10 . 27 217 112 9 49 . 87 90 101 44 42 21 24 96 227 31 58 121 2 40 102 86 Gun 600 | 28 74 18 192 10 . 26 183 21 . . . . . . . . . . . . . . . . . 14 34 Cannon 1317 | . 18 18 6 . . . 33 84 9 49 . 63 90 101 44 42 21 24 96 227 31 58 121 2 40 88 52 Launcher 33 | . . . 9 . . 1 1 7 . . . 15 . . . . . . . . . . . . . . . Special 10 | . 1 . . . . . . . . . . 9 . . . . . . . . . . . . . . . Kinetic 297 | 28 92 36 22 . . . 62 . . . . . . . . . . . . . . . . . . 14 43 Thermal 1566 | . 1 . 176 10 . 26 154 105 9 49 . 40 90 101 39 42 21 24 96 227 8 58 121 2 36 88 43 Explosive 35 | . . . 9 . . 1 1 . . . . 24 . . . . . . . . . . . . . . . Electromagnetic 62 | . . . . . . . . 7 . . . 23 . . 5 . . . . . 23 . . . 4 . . Robot Hit Streak 38 | 3 9 15 17 9 . 11 19 12 4 20 . 9 8 15 10 11 1 9 15 21 8 11 23 . 38 17 5 Robot Miss Streak 10 | 3 4 2 6 1 . 2 4 3 1 4 . 4 3 3 3 1 1 2 3 3 2 5 3 . 1 4 10 Penetration Max 1 | . . . . . . . . . . . . . . . . . . . . . . . . . . . 1 Secondary Targets 8 | . 2 . 4 . . 1 1 . . . . . . . . . . . . . . . . . . . . Max Gunslinging Chain 1 | . 1 . 1 . . 1 1 . . . . . . . . . . . . . . . . . . . . Shots Hit Robots 1261 | 13 54 29 146 9 . 19 143 76 6 21 . 83 13 67 24 28 1 17 64 159 19 33 82 . 40 69 46 Core Hits 606 | 7 25 8 71 3 . 9 51 37 3 8 . 111 6 30 12 10 . 6 29 61 8 15 32 . 12 35 17 Critical Kills 12 | . 1 . . . . . . 3 1 . . 5 . 1 . . . . . . . . . . . . 1 Critical Parts Destroyed 7 | 1 . . . . . . . . . . . 6 . . . . . . . . . . . . . . . Critical Strikes 40 | 1 2 1 6 1 . 4 6 4 1 . . 12 . 1 . . . . . . . . . . . . 1 Burn 18 | . . . 6 1 . 4 6 1 . . . . . . . . . . . . . . . . . . . Meltdown 5 | . . . . . . . . 3 1 . . . . 1 . . . . . . . . . . . . . Destroy 3 | 1 1 . . . . . . . . . . . . . . . . . . . . . . . . . 1 Blast 2 | . 1 1 . . . . . . . . . . . . . . . . . . . . . . . . . Smash 11 | . . . . . . . . . . . . 11 . . . . . . . . . . . . . . . Sever 1 | . . . . . . . . . . . . 1 . . . . . . . . . . . . . . . Melee Attacks 64 | . . . 16 . . 1 . . . . 1 41 . . . 4 . . . . . . . . 1 . . Impact 59 | . . . 16 . . 1 . . . . 1 41 . . . . . . . . . . . . . . . Slashing . | . . . . . . . . . . . . . . . . . . . . . . . . . . . . Piercing 5 | . . . . . . . . . . . . . . . . 4 . . . . . . . . 1 . . Sneak Attacks . | . . . . . . . . . . . . . . . . . . . . . . . . . . . . Combat Hostiles . | . . . . . . . . . . . . . . . . . . . . . . . . . . . . Follow-up Attacks . | . . . . . . . . . . . . . . . . . . . . . . . . . . . . Damage Inflicted 50667 | 171 809 454 3532 153 . 462 3011 2582 158 545 . 7799 672 3076 1142 1192 57 812 3102 7789 568 1572 4638 . 1552 3286 1533 Guns 6808 | 171 577 212 2277 153 . 327 2146 360 . . . . . . . . . . . . . . . . . 232 353 Cannons 34281 | . 232 242 86 . . . 614 1614 158 545 . 1357 672 3070 1142 1096 57 812 3031 7750 568 1572 3906 . 1536 3041 1180 Explosions 6975 | . . . 1038 . . 135 222 608 . . . 4345 . . . . . . . . . . 627 . . . . Melee 2047 | . . . 109 . . . . . . . . 1826 . . . 96 . . . . . . . . 16 . . Ramming 285 | . . . 22 . . . 29 . . . . . . 6 . . . . 71 39 . . 105 . . 13 . Kinetic 3038 | 171 809 454 217 . . . 692 . . . . . . . . . . . . . . . . . . 232 463 Thermal 37514 | . . . 2146 153 . 327 2068 2074 158 545 . 1163 672 3070 1142 1096 57 812 3031 7750 133 1572 3906 . 1528 3041 1070 Explosive 5527 | . . . 1038 . . 135 222 . . . . 4132 . . . . . . . . . . . . . . . Electromagnetic 1985 | . . . . . . . . 508 . . . 407 . . . . . . . . 435 . 627 . 8 . . Impact 1935 | . . . 109 . . . . . . . . 1826 . . . . . . . . . . . . . . . Slashing 271 | . . . . . . . . . . . . 271 . . . . . . . . . . . . . . . Piercing 112 | . . . . . . . . . . . . . . . . 96 . . . . . . . . 16 . . Highest Corruption 45 | . . . 1 1 1 1 11 5 5 5 5 3 3 5 5 5 5 5 2 6 22 22 35 . 14 45 45 Average Corruption 8 | . . . 1 1 1 1 7 2 5 5 5 3 3 5 5 5 5 5 1 4 20 22 23 . 10 25 45 Corruption Purged . | . . . . . . . . . . . . . . . . . . . . . . . . . . . . Corruption Blocked . | . . . . . . . . . . . . . . . . . . . . . . . . . . . . Effects 787 | . . . 23 5 4 3 85 12 15 37 2 43 34 23 28 55 16 22 3 69 55 82 64 . 12 53 42 Message Errors 184 | . . . 1 1 2 2 26 4 4 11 1 17 7 6 6 13 8 10 1 9 11 20 11 . 1 6 6 Matter Fused 176 | . . . 5 . . . 17 1 3 12 . 6 10 1 7 16 3 6 2 18 16 17 19 . 1 9 7 Heat Flow Errors 89 | . . . 2 . 1 . 6 1 2 4 . 6 4 2 3 7 3 3 . 11 6 12 2 . 2 10 2 Energy Discharges 108 | . . . 5 2 1 1 10 3 3 5 . 6 5 2 6 3 1 . . 14 8 10 7 . 3 7 6 Parts Rejected 9 | . . . . . . . . . . . . . . . 1 . . . . . 1 . 3 . . 4 . Parts Fused 8 | . . . . . . . 2 . . 1 . 2 . . . 1 . . . 1 . . 1 . . . . Data Loss (minor) 88 | . . . 3 2 . . 7 2 1 3 . 1 4 5 2 10 1 2 . 8 6 12 6 . 1 7 5 Data Loss (major) 43 | . . . 1 . . . 8 . 1 1 1 3 2 4 1 3 . . . 1 4 4 2 . 2 1 4 Misfires 34 | . . . 5 . . . 5 1 1 . . 1 1 . 1 1 . . . 5 1 3 5 . . 1 3 Alerts 7 | . . . . . . . 2 . . . . . . 2 . . . 1 . . 1 1 . . . . . Misdirections 4 | . . . . . . . . . . . . . . . . . . . . . 1 . . . . 2 1 Weapon Failures 37 | . . . 1 . . . 2 . . . . 1 1 1 1 1 . . . 2 . 3 8 . 2 6 8 Overload Shots 4 | . . . . . . . . . . . . . . 4 . . . . . . . . . . . . . Overflow Damage 2023 | . 3 . 74 . . . 111 49 51 . . 672 24 116 46 . . 47 126 255 3 155 171 . . 96 24 Projectiles 1260 | . 3 . . . . . 9 49 51 . . 120 24 116 46 . . 47 93 255 3 155 169 . . 96 24 Explosions 342 | . . . 65 . . . 102 . . . . 173 . . . . . . . . . . 2 . . . . Melee 421 | . . . 9 . . . . . . . . 379 . . . . . . 33 . . . . . . . . Knockbacks 22 | . 6 3 3 . . . . . . . . 3 . . . . . . . 3 . . 1 . . . 3 Impact 9 | . . . 2 . . . . . . . . 3 . . . . . . . 3 . . 1 . . . . Kinetic 12 | . 5 3 1 . . . . . . . . . . . . . . . . . . . . . . . 3 Secondary 1 | . 1 . . . . . . . . . . . . . . . . . . . . . . . . . . Self-Inflicted Damage 394 | . . . 14 . . . 71 . . . . 152 . . . . . . . . . . 157 . . . . Shots 8 | . . . 1 . . . 1 . . . . 4 . . . . . . . . . . 2 . . . . Rammed 20 | . . . 4 . . . 5 . . . . . . . . . . . . 1 . . 8 . . 2 . Targets Rammed 33 | . . . 5 . . . 6 . . . . . . 1 . . . . 3 6 . . 9 . . 3 . Kicked 9 | . . . . . . . . . . . . . . 1 . . . . 3 5 . . . . . . . Crushed 4 | . . . 1 . . . 1 . . . . . . . . . . . . . . . 1 . . 1 . Highest Temperature 379 | . 22 27 275 5 121 25 229 238 143 379 . 213 269 168 212 227 221 213 3 357 233 239 219 . 143 315 104 Average Temperature 78 | . 8 10 81 3 65 12 32 83 59 122 . 63 66 72 62 103 97 84 3 128 86 92 91 . 77 98 49 Received Heat Transfer 5884 | . 72 141 345 18 . 108 711 352 . 42 . 399 174 318 48 123 . 135 141 1106 25 9 165 . . 1313 139 Effects 4 | . . . . . . . . 4 . . . . . . . . . . . . . . . . . . . Interference 4 | . . . . . . . . 4 . . . . . . . . . . . . . . . . . . . Siege Activations 19 | . . . . . . . . . . . . . . . . . . . . . 2 2 8 . 2 5 . Total Turns 347 | . . . . . . . . . . . . . . . . . . . . . 8 10 111 . 75 143 . Longest Duration 71 | . . . . . . . . . . . . . . . . . . . . . 6 8 41 . 71 64 . Robots Corrupted 9 | . . . 2 . . . . . . . . 6 . . . . . . . . 1 . . . . . . Combat Hostiles 9 | . . . 2 . . . . . . . . 6 . . . . . . . . 1 . . . . . . Parts Fried 9 | . . . . . . . . 4 . . . . . . . . . . . . 5 . . . . . . Impact Corruptions 10 | . . . 2 . . . . . . . . 7 . . . . . . 1 . . . . . . . . Robots Melted 7 | . . . . . . . . 4 1 1 . . . 1 . . . . . . . . . . . . . Combat Hostiles 5 | . . . . . . . . 3 . 1 . . . 1 . . . . . . . . . . . . . Parts Melted 90 | . . . 12 . . 4 15 22 . 3 . . 1 9 1 . . 1 4 9 . 4 . . . 4 1 Heat Transferred 32607 | . . . 4958 407 . 999 4554 3784 274 920 . 803 350 2031 675 600 25 450 1650 4070 75 875 2021 . 900 1625 561 Parts Sabotaged . | . . . . . . . . . . . . . . . . . . . . . . . . . . . . Parts Stolen . | . . . . . . . . . . . . . . . . . . . . . . . . . . . . Parts Stripped . | . . . . . . . . . . . . . . . . . . . . . . . . . . . . Power Chain Reactions 3 | . . . . . . . . 2 . . . 1 . . . . . . . . . . . . . . . Alert | -11 -10 -10 -9 -9 -9 -8 -8 -7 -7 -7 -7 -7 -6 -6 -6 -6 -6 -5 -5 -5 -5 -5 -5 -4 -4 -4 -4 ------- Run | Yrd Mat Min Mat Min Exi Min Mat Fac Low Low Zio Dee Pro Fac Low Low Dat Pro Fac Ext Cet Arc Hub Fac Was Fac Arm Peak Influence 1098 | 30 227 65 889 454 . 176 467 344 . . . . . 514 . . . . 344 542 699 560 1098 553 193 180 137 Initial 537 | . 19 . 1 346 . . . 177 . . . . . 318 . . . . . 159 261 279 5 537 193 79 38 Average 269 | 15 59 27 513 285 . 62 264 201 . . . . . 305 . . . . 142 281 257 288 510 540 144 74 47 Maximum Alert Level 3 | . 1 . 3 2 . . 2 1 . . . . . 2 . . . . 1 2 2 2 3 2 . . . Low Security (%) 45 | 100 93 100 8 20 . 100 38 69 . . . . . 8 . . . . 64 37 31 25 23 . 100 100 100 Level 1 29 | . 6 . 18 78 . . 30 30 . . . . . 84 . . . . 35 29 49 53 23 . . . . Level 2 22 | . . . 65 1 . . 30 . . . . . . 6 . . . . . 32 18 21 18 100 . . . Level 3 2 | . . . 7 . . . . . . . . . . . . . . . . . . . 34 . . . . Level 4 . | . . . . . . . . . . . . . . . . . . . . . . . . . . . . Level 5 . | . . . . . . . . . . . . . . . . . . . . . . . . . . . . High Security . | . . . . . . . . . . . . . . . . . . . . . . . . . . . . Max Security . | . . . . . . . . . . . . . . . . . . . . . . . . . . . . Squads Dispatched 34 | . 2 . 3 1 . . 3 4 . . . . . 4 . . . . 6 2 . . 5 . . 1 3 Investigation 7 | . 1 . . 1 . . 2 . . . . . . . . . . . 2 1 . . . . . . . Extermination 10 | . . . . . . . . 2 . . . . . 3 . . . . 2 . . . 1 . . 1 1 Reinforcement 13 | . 1 . 2 . . . 1 1 . . . . . 1 . . . . 2 . . . 3 . . . 2 Assault 3 | . . . 1 . . . . . . . . . . . . . . . . 1 . . 1 . . . . Garrison 1 | . . . . . . . . 1 . . . . . . . . . . . . . . . . . . . Intercept . | . . . . . . . . . . . . . . . . . . . . . . . . . . . . Searches Triggered 1 | . . . . . . . . . . . . . . 1 . . . . . . . . . . . . . Construction Impeded 1 | . . . . . . . . . . . . . . . . . . . 1 . . . . . . . . Haulers Reinforced 1 | . . . . . . . . . . . . . . . . . . . 1 . . . . . . . . Active Scanning Responses . | . . . . . . . . . . . . . . . . . . . . . . . . . . . . Cargo Convoy Interrupts . | . . . . . . . . . . . . . . . . . . . . . . . . . . . . Stealth | -11 -10 -10 -9 -9 -9 -8 -8 -7 -7 -7 -7 -7 -6 -6 -6 -6 -6 -5 -5 -5 -5 -5 -5 -4 -4 -4 -4 --------- Run | Yrd Mat Min Mat Min Exi Min Mat Fac Low Low Zio Dee Pro Fac Low Low Dat Pro Fac Ext Cet Arc Hub Fac Was Fac Arm Distress Signals 20 | . 1 . 4 . . . 3 2 . . . . . . . . . . . 3 2 . 4 . . 1 . Communications Jammed 33 | . . . . . . . . . . . . . . . . . . . . . . . 4 . . 18 11 Distress Signals 22 | . . . . . . . . . . . . . . . . . . . . . . . 3 . . 18 1 Times Spotted 476 | . 24 5 59 5 . 7 40 28 . 5 . 60 6 21 10 6 4 4 19 47 23 10 30 1 7 42 13 Peak Tracking Total 37 | . 4 2 9 2 . 3 5 6 . 5 . 37 3 5 4 2 4 3 4 7 5 2 6 1 3 10 4 Tactical Retreats 28 | . 1 1 4 . . 1 1 . . 1 . . . 2 . . . . . 5 . . 6 . 1 2 3 Traps | -11 -10 -10 -9 -9 -9 -8 -8 -7 -7 -7 -7 -7 -6 -6 -6 -6 -6 -5 -5 -5 -5 -5 -5 -4 -4 -4 -4 ------- Run | Yrd Mat Min Mat Min Exi Min Mat Fac Low Low Zio Dee Pro Fac Low Low Dat Pro Fac Ext Cet Arc Hub Fac Was Fac Arm Traps Triggered 17 | . 2 . 1 . . . 2 1 . . . . . . . . . . . 7 . . 1 1 . 2 . Indirectly 1 | . . . . . . . . . . . . . . . . . . . . . . . 1 . . . . Trap Hack Attempts . | . . . . . . . . . . . . . . . . . . . . . . . . . . . . Triggered . | . . . . . . . . . . . . . . . . . . . . . . . . . . . . Disarmed . | . . . . . . . . . . . . . . . . . . . . . . . . . . . . Reprogrammed . | . . . . . . . . . . . . . . . . . . . . . . . . . . . . Reused . | . . . . . . . . . . . . . . . . . . . . . . . . . . . . Traps Extracted . | . . . . . . . . . . . . . . . . . . . . . . . . . . . . Installed . | . . . . . . . . . . . . . . . . . . . . . . . . . . . . Triggered 4 | . . . . . . . . . . 3 . . . . 1 . . . . . . . . . . . . Machines | -11 -10 -10 -9 -9 -9 -8 -8 -7 -7 -7 -7 -7 -6 -6 -6 -6 -6 -5 -5 -5 -5 -5 -5 -4 -4 -4 -4 ---------- Run | Yrd Mat Min Mat Min Exi Min Mat Fac Low Low Zio Dee Pro Fac Low Low Dat Pro Fac Ext Cet Arc Hub Fac Was Fac Arm Machines Disabled 38 | . . . 5 . . 1 3 . . . . 2 . 2 . . 1 . . 4 1 3 14 . . . 2 Max in Single Turn 10 | . . . 2 . . 1 2 . . . . 1 . 1 . . 1 . . 1 1 1 10 . . . 1 Garrison Access 1 | . . . . . . . . . . . . . . . . . . . . . . . 1 . . . . Network Hub 2 | . . . . . . . . . . . . . . . . . . . . . . . 2 . . . . Machines Repaired . | . . . . . . . . . . . . . . . . . . . . . . . . . . . . Machines Dismantled . | . . . . . . . . . . . . . . . . . . . . . . . . . . . . Machines Sabotaged . | . . . . . . . . . . . . . . . . . . . . . . . . . . . . Overloaded Fab Kills . | . . . . . . . . . . . . . . . . . . . . . . . . . . . . Hacking | -11 -10 -10 -9 -9 -9 -8 -8 -7 -7 -7 -7 -7 -6 -6 -6 -6 -6 -5 -5 -5 -5 -5 -5 -4 -4 -4 -4 --------- Run | Yrd Mat Min Mat Min Exi Min Mat Fac Low Low Zio Dee Pro Fac Low Low Dat Pro Fac Ext Cet Arc Hub Fac Was Fac Arm Machines Accessed 67 | . 8 . 12 1 1 . 10 4 . . 1 . . 3 . 1 4 . 3 11 3 1 2 1 . 1 . Terminals 47 | . 7 . 9 . . . 7 2 . . . . . 3 . 1 . . 1 11 3 . 1 1 . 1 . Fabricators 1 | . . . . . . . . . . . . . . . . . . . 1 . . . . . . . . Repair Stations 6 | . 1 . 2 . . . 1 1 . . . . . . . . . . 1 . . . . . . . . Recycling Units . | . . . . . . . . . . . . . . . . . . . . . . . . . . . . Scanalyzers 2 | . . . 1 . . . 1 . . . . . . . . . . . . . . . . . . . . Garrison Access 3 | . . . . . . . 1 1 . . . . . . . . . . . . . . 1 . . . . Total Hacks 198 | . 32 . 35 1 1 . 26 7 . . 1 . . 4 . 1 31 . 9 26 7 7 2 4 . 4 . Successful 129 | . 17 . 23 1 1 . 12 4 . . 1 . . 3 . 1 31 . 7 15 3 7 1 1 . 1 . Failed 68 | . 15 . 11 . . . 14 3 . . . . . 1 . . . . 2 11 4 . 1 3 . 3 . Catastrophic 10 | . . . . . . . 3 1 . . . . . 1 . . . . 1 . 2 . 1 . . 1 . Database Lockouts 1 | . . . 1 . . . . . . . . . . . . . . . . . . . . . . . . Manual 99 | . 27 . 21 . . . 14 1 . . 5 . . 6 . . . . 3 11 1 . 1 5 . 4 . Terminals 121 | . 30 . 21 . . . 17 3 . . . . . 4 . 1 . . 3 26 7 . 1 4 . 4 . Fabricators 2 | . . . . . . . . . . . . . . . . . . . 2 . . . . . . . . Repair Stations 25 | . 2 . 12 . . . 4 3 . . . . . . . . . . 4 . . . . . . . . Recycling Units . | . . . . . . . . . . . . . . . . . . . . . . . . . . . . Scanalyzers 5 | . . . 2 . . . 3 . . . . . . . . . . . . . . . . . . . . Garrison Access 4 | . . . . . . . 2 1 . . . . . . . . . . . . . . 1 . . . . Terminal Hacks 70 | . 6 . 2 1 1 . 2 1 . . 1 . . 3 . 1 31 . 1 10 3 7 . . . . . Record 27 | . . . . . 1 . . . . . . . . 2 . 1 11 . . 2 3 7 . . . . . Part Schematic 13 | . . . . . . . . . . . 1 . . . . . 12 . . . . . . . . . . Robot Schematic 5 | . . . . . . . . . . . . . . . . . 5 . . . . . . . . . . Robot Analysis 5 | . 3 . 1 . . . 1 . . . . . . . . . . . . . . . . . . . . Prototype ID Bank 4 | . 1 . . . . . . . . . . . . . . . 3 . . . . . . . . . . Open Door 6 | . . . . 1 . . . . . . . . . . . . . . . 5 . . . . . . . Branch Access Points 3 | . . . . . . . . 1 . . . . . 1 . . . . 1 . . . . . . . . Alert Level 1 | . . . . . . . . . . . . . . . . . . . . 1 . . . . . . . Locate Traps 2 | . . . . . . . 1 . . . . . . . . . . . . 1 . . . . . . . Hauler Manifests 2 | . 1 . 1 . . . . . . . . . . . . . . . . . . . . . . . . Zone Layout 2 | . 1 . . . . . . . . . . . . . . . . . . 1 . . . . . . . Fabricator Hacks 2 | . . . . . . . . . . . . . . . . . . . 2 . . . . . . . . Load Schematic 1 | . . . . . . . . . . . . . . . . . . . 1 . . . . . . . . Build 1 | . . . . . . . . . . . . . . . . . . . 1 . . . . . . . . Repair Station Hacks 20 | . 2 . 10 . . . 2 2 . . . . . . . . . . 4 . . . . . . . . Scan Component 11 | . 1 . 6 . . . 1 1 . . . . . . . . . . 2 . . . . . . . . Repair 9 | . 1 . 4 . . . 1 1 . . . . . . . . . . 2 . . . . . . . . Recycling Unit Hacks . | . . . . . . . . . . . . . . . . . . . . . . . . . . . . Scanalyzer 3 | . . . 2 . . . 1 . . . . . . . . . . . . . . . . . . . . Insert Component 2 | . . . 1 . . . 1 . . . . . . . . . . . . . . . . . . . . Analyze 1 | . . . 1 . . . . . . . . . . . . . . . . . . . . . . . . Garrison Access Hacks 1 | . . . . . . . . . . . . . . . . . . . . . . . 1 . . . . Seal Access 1 | . . . . . . . . . . . . . . . . . . . . . . . 1 . . . . Unauthorized Hacks 33 | . 9 . 9 . . . 7 1 . . . . . . . . . . . 5 . . . 1 . 1 . Terminals 33 | . 9 . 9 . . . 7 1 . . . . . . . . . . . 5 . . . 1 . 1 . Assimilate 3 | . 1 . 2 . . . . . . . . . . . . . . . . . . . . . . . . Botnet 11 | . 2 . 1 . . . . 1 . . . . . . . . . . . 5 . . . 1 . 1 . Operators 3 | . 1 . 1 . . . 1 . . . . . . . . . . . . . . . . . . . . Skim 16 | . 5 . 5 . . . 6 . . . . . . . . . . . . . . . . . . . . Fabricators . | . . . . . . . . . . . . . . . . . . . . . . . . . . . . Repair Stations . | . . . . . . . . . . . . . . . . . . . . . . . . . . . . Recycling Units . | . . . . . . . . . . . . . . . . . . . . . . . . . . . . Scanalyzers . | . . . . . . . . . . . . . . . . . . . . . . . . . . . . Garrison Access . | . . . . . . . . . . . . . . . . . . . . . . . . . . . . Data Cores Recovered 3 | . . . . . . . . . . . . . . 1 . . . . . . . . 1 . . . 1 Used . | . . . . . . . . . . . . . . . . . . . . . . . . . . . . Hacking Detections 45 | . 7 . 11 . . . 7 2 . . . . . 3 . . . . 3 6 3 . 1 1 . 1 . Full Trace Events 5 | . . . . . . . 2 . . . . . . . . . . . 2 1 . . . . . . . Feedback Events . | . . . . . . . . . . . . . . . . . . . . . . . . . . . . Feedback Blocked . | . . . . . . . . . . . . . . . . . . . . . . . . . . . . Robot Schematics Acquired 9 | . . . . . . . . . . . 4 . . . . . 5 . . . . . . . . . . Robots Built . | . . . . . . . . . . . . . . . . . . . . . . . . . . . . Authchips . | . . . . . . . . . . . . . . . . . . . . . . . . . . . . Time . | . . . . . . . . . . . . . . . . . . . . . . . . . . . . Total Robot Build Rating . | . . . . . . . . . . . . . . . . . . . . . . . . . . . . Part Schematics Acquired 28 | . . . 1 . . . . . . . 15 . . . . . 12 . . . . . . . . . . Parts Built 2 | . . . . . . . . . . . . . . . . . . . 2 . . . . . . . . Authchips . | . . . . . . . . . . . . . . . . . . . . . . . . . . . . Time 42 | . . . . . . . . . . . . . . . . . . . 42 . . . . . . . . Total Part Build Rating 8 | . . . . . . . . . . . . . . . . . . . 8 . . . . . . . . Parts Repaired 9 | . 1 . 4 . . . 1 1 . . . . . . . . . . 2 . . . . . . . . Time 282 | . 26 . 126 . . . 44 22 . . . . . . . . . . 64 . . . . . . . . Parts Recycled . | . . . . . . . . . . . . . . . . . . . . . . . . . . . . Recycled Matter . | . . . . . . . . . . . . . . . . . . . . . . . . . . . . Retrieved Matter . | . . . . . . . . . . . . . . . . . . . . . . . . . . . . Retrieved Components . | . . . . . . . . . . . . . . . . . . . . . . . . . . . . Parts Scanalyzed 2 | . . . 1 . . . 1 . . . . . . . . . . . . . . . . . . . . Part Schematics Acquired 1 | . . . 1 . . . . . . . . . . . . . . . . . . . . . . . . Parts Damaged . | . . . . . . . . . . . . . . . . . . . . . . . . . . . . Bothacking | -11 -10 -10 -9 -9 -9 -8 -8 -7 -7 -7 -7 -7 -6 -6 -6 -6 -6 -5 -5 -5 -5 -5 -5 -4 -4 -4 -4 ------------ Run | Yrd Mat Min Mat Min Exi Min Mat Fac Low Low Zio Dee Pro Fac Low Low Dat Pro Fac Ext Cet Arc Hub Fac Was Fac Arm Used RIF Installer . | . . . . . . . . . . . . . . . . . . . . . . . . . . . . Robots Hacked . | . . . . . . . . . . . . . . . . . . . . . . . . . . . . Non-combat . | . . . . . . . . . . . . . . . . . . . . . . . . . . . . Combat . | . . . . . . . . . . . . . . . . . . . . . . . . . . . . Robot Hacks Applied . | . . . . . . . . . . . . . . . . . . . . . . . . . . . . Relay Couplers Released 2 | . . . . . . . . . . . . . . . . . . . . . . . 2 . . . . Machine Destruction 2 | . . . . . . . . . . . . . . . . . . . . . . . 2 . . . . Fabnet Peak Effective % . | . . . . . . . . . . . . . . . . . . . . . . . . . . . . Robots Rewired 13 | . . . . . . . . . . . . . . . . . . . . 13 . . . . . . . Allies Hacked . | . . . . . . . . . . . . . . . . . . . . . . . . . . . . Hacks Repelled . | . . . . . . . . . . . . . . . . . . . . . . . . . . . . Allies | -11 -10 -10 -9 -9 -9 -8 -8 -7 -7 -7 -7 -7 -6 -6 -6 -6 -6 -5 -5 -5 -5 -5 -5 -4 -4 -4 -4 -------- Run | Yrd Mat Min Mat Min Exi Min Mat Fac Low Low Zio Dee Pro Fac Low Low Dat Pro Fac Ext Cet Arc Hub Fac Was Fac Arm Total Allies 34 | . 1 . . 4 . . . . . . 2 . . . . . . . . 18 5 . . 3 1 . . Largest Group 8 | . 1 1 . 3 3 3 . . . . 2 2 . . . . . . . 8 7 5 3 3 4 4 . Highest-Rated Group 639 | . 10 10 . 40 40 40 . . . . 192 192 . . . . . . . 328 639 520 272 138 160 160 . Highest-Rated Ally 159 | . 10 10 . 31 16 16 . . . . 96 96 . . . . . . . 159 159 159 96 46 46 46 . Total Orders 10 | . . 1 . . . . . . . . . . . . . . . 2 4 . . . . 3 . . . STAY 1 | . . 1 . . . . . . . . . . . . . . . . . . . . . . . . . FOLLOW 1 | . . . . . . . . . . . . . . . . . . . . . . . . 1 . . . EXPLORE 4 | . . . . . . . . . . . . . . . . . . 1 2 . . . . 1 . . . RETURN 4 | . . . . . . . . . . . . . . . . . . 1 2 . . . . 1 . . . Ally Attacks 313 | . . . . 19 . 9 . . . . . 23 . . . . . . . 56 109 21 26 . 30 20 . Total Damage 8283 | . . . . 219 . 49 . . . . . 512 . . . . . . . 1070 3239 849 1150 . 847 348 . Kills 44 | . . . . 3 . . . . . . . 3 . . . . . . . 8 19 4 6 . . 1 . Allies Corrupted . | . . . . . . . . . . . . . . . . . . . . . . . . . . . . Allies Melted 2 | . . . . . . . . . . . . 1 . . . . . . . 1 . . . . . . . Intel | -11 -10 -10 -9 -9 -9 -8 -8 -7 -7 -7 -7 -7 -6 -6 -6 -6 -6 -5 -5 -5 -5 -5 -5 -4 -4 -4 -4 ------- Run | Yrd Mat Min Mat Min Exi Min Mat Fac Low Low Zio Dee Pro Fac Low Low Dat Pro Fac Ext Cet Arc Hub Fac Was Fac Arm Robot Analysis Total 5 | . 3 . 1 . . . 1 . . . . . . . . . . . . . . . . . . . . Derelict Logs Recovered 10 | . . 2 . 1 . . . . . 1 2 . 1 . 2 1 . . . . . . . . . . . Drone Launches 8 | . . . . . . . . . . . . . . . . . . 2 4 . . . . 2 . . . Drone Recoveries 8 | . . . . . . . . . . . . . . . . . . 2 4 . . . . 2 . . . Exploration | -11 -10 -10 -9 -9 -9 -8 -8 -7 -7 -7 -7 -7 -6 -6 -6 -6 -6 -5 -5 -5 -5 -5 -5 -4 -4 -4 -4 ------------- Run | Yrd Mat Min Mat Min Exi Min Mat Fac Low Low Zio Dee Pro Fac Low Low Dat Pro Fac Ext Cet Arc Hub Fac Was Fac Arm Turns Passed 40096 | 131 1716 866 3509 1006 672 423 2895 1458 680 1609 2531 5577 1390 1361 939 2023 681 829 1035 2807 1158 1619 1135 160 304 952 630 Spaces Moved 16461 | 92 910 666 1911 578 417 229 1285 531 380 710 1339 1797 601 537 348 635 155 284 384 992 395 147 327 62 113 369 267 Core 166 | 5 40 . . . . . . . . . . 27 . . . 11 13 5 . . 8 43 . . . 6 8 Treads 8651 | . 70 19 1357 578 417 229 1285 429 . 366 278 1057 . . 323 624 66 . . 479 387 104 327 62 113 81 . Legs 3280 | . . . . . . . . . . . . 713 601 537 25 . 76 279 384 513 . . . . . 30 122 Wheels 4364 | 87 800 647 554 . . . . 102 380 344 1061 . . . . . . . . . . . . . . 252 137 Hover . | . . . . . . . . . . . . . . . . . . . . . . . . . . . . Flight . | . . . . . . . . . . . . . . . . . . . . . . . . . . . . Fastest Speed 50 | 50 80 95 95 160 160 160 156 145 160 160 160 195 195 130 195 245 189 189 189 189 160 240 240 160 160 95 95 Average Speed 198 | 78 119 96 141 160 160 160 174 220 172 197 177 256 195 193 241 287 410 245 189 215 257 1047 240 160 160 164 155 Slowest Speed 3000 | 80 550 160 240 160 160 160 236 236 175 232 625 2550 195 195 245 2700 2700 2750 189 242 3000 3000 240 160 160 1250 1100 Overloaded Moves . | . . . . . . . . . . . . . . . . . . . . . . . . . . . . Propulsion Burnouts . | . . . . . . . . . . . . . . . . . . . . . . . . . . . . Robots Hopped . | . . . . . . . . . . . . . . . . . . . . . . . . . . . . Cave-ins Triggered 1 | . . . . . . . . . . . . . . . . . . . . 1 . . . . . . . Exploration Rate (%) 57 | 3 91 83 94 90 76 70 69 17 41 68 85 85 63 18 57 72 81 59 8 88 88 88 32 8 73 11 4 Regions Visited 27 Branch Regions 18 Pre-discovered Areas 9 | . 1 1 1 . 1 . 1 . . . 2 . 1 . . . 1 . . . . . . . . . . Known Exits Taken 10 | . . . 1 . 1 1 1 1 1 . . . 1 1 . . . . 1 . . . 1 . . . . Unknown Exits Taken 15 | 1 1 1 . 1 . . . . . 1 1 1 . . 1 1 1 1 . 1 1 1 . . . 1 . Scrap Searched 16 | . . 2 . 2 . . . . 1 4 4 . 1 . 2 . . . . . . . . . . . . Spaces Dug 66 | . 1 . 2 . . 1 12 . . 2 . 5 13 2 . 6 4 . 4 8 . . 4 2 . . . Terrain Destroyed 788 | . 1 . 60 . . 7 77 4 1 16 . 60 76 20 10 17 4 6 27 46 3 14 300 2 . 21 16 Melee 8 | . . . 2 . . 1 . . . . . 5 . . . . . . . . . . . . . . . Projectile 317 | . 1 . . . . . 9 1 1 16 . 3 76 20 10 17 4 6 27 46 3 14 24 2 . 21 16 AOE 463 | . . . 58 . . 6 68 3 . . . 52 . . . . . . . . . . 276 . . . . Terrain Rammed . | . . . . . . . . . . . . . . . . . . . . . . . . . . . . Walls Destroyed . | . . . . . . . . . . . . . . . . . . . . . . . . . . . . Machines Disabled . | . . . . . . . . . . . . . . . . . . . . . . . . . . . . Actions | -11 -10 -10 -9 -9 -9 -8 -8 -7 -7 -7 -7 -7 -6 -6 -6 -6 -6 -5 -5 -5 -5 -5 -5 -4 -4 -4 -4 --------- Run | Yrd Mat Min Mat Min Exi Min Mat Fac Low Low Zio Dee Pro Fac Low Low Dat Pro Fac Ext Cet Arc Hub Fac Was Fac Arm Total 21901 | 119 1437 845 2468 654 422 255 1744 706 395 862 1497 2632 727 774 402 786 182 391 593 1460 514 200 538 124 187 600 387 Wait 2863 | . 419 126 257 43 2 8 236 38 . 87 115 552 76 85 13 111 . 87 121 95 55 15 107 51 12 99 53 Move 16435 | 91 909 665 1910 577 416 228 1284 530 379 709 1338 1796 600 536 347 634 154 283 383 991 394 146 326 62 112 368 267 Hop . | . . . . . . . . . . . . . . . . . . . . . . . . . . . . Pick Up 264 | 7 18 5 34 7 . . 19 16 1 5 9 42 . 20 2 2 . 1 11 19 10 5 11 1 11 6 2 Fast Attach 129 | 7 2 . 10 1 2 . 20 3 3 3 9 20 . 7 . . . . 2 3 4 . 3 1 4 18 7 Attach 90 | . . . 7 . . . 8 9 . 3 2 18 . 8 5 2 2 1 . 4 1 . 5 2 2 7 4 Detach 103 | . . . 1 1 . . 2 2 . . . 22 . 26 5 6 6 . 4 10 10 . . 2 . 6 . Swap 337 | . 29 24 80 4 . 4 23 30 4 15 4 31 6 6 6 6 2 4 15 11 11 . 10 1 7 3 1 Drop 299 | . 13 7 45 8 2 . 38 19 4 7 19 60 . 20 2 . . . 6 22 11 5 5 3 . 3 . Fire 1096 | 14 47 18 103 5 . 14 108 59 4 33 . 50 45 65 22 21 18 15 48 119 18 29 62 1 38 87 53 Melee 64 | . . . 16 . . 1 . . . . 1 41 . . . 4 . . . . . . . . 1 . . Ram . | . . . . . . . . . . . . . . . . . . . . . . . . . . . . Kick 9 | . . . . . . . . . . . . . . 1 . . . . 3 5 . . . . . . . Crush 24 | . . . 5 . . . 6 . . . . . . . . . . . . 1 . . 9 . . 3 . Escape Stasis 13 | . . . . . . . . . . . . . . . . . . . . 13 . . . . . . . Rewire 175 | . . . . 8 . . . . . . . . . . . . . . . 167 . . . . . . . Trap . | . . . . . . . . . . . . . . . . . . . . . . . . . . . . Miscellaneous . | . . . . . . . . . . . . . . . . . . . . . . . . . . . . Route ------- -11/Scrapyard -10/Materials (discovered 6 exits: *Mat x3 / [*Min x2] / Sub) -10/Mines (discovered 2 exits: *Mat / Sub) -9/Materials (discovered 4 exits: *Mat x3 / *Min) -9/Mines (discovered 3 exits: *Mat x2 / *Exi) -9/Exiles -8/Mines -8/Materials (discovered 3 exits: *Fac x3) -7/Factory (discovered 6 exits: Fac x2 / Sto x2 / *Low x2) -7/Lower Caves -7/Lower Caves (discovered 2 exits: *Fac / *Zio) -7/Zion (discovered 2 exits: [*Dee] / [*Pro]) -7/Deep Caves -6/Proximity Caves -6/Factory (discovered 2 exits: *Low x2) -6/Lower Caves -6/Lower Caves -6/Data Miner -5/Proximity Caves -5/Factory (discovered 6 exits: *Fac x2 / Upp x2 / *Ext x2) -5/Extension (discovered 3 exits: *Fac x2 / *Cet) -5/Cetus (discovered 3 exits: *Fac x2 / *Arc) -5/Archives (discovered 3 exits: *Fac / *Hub x2) -5/Hub_04(d) (discovered 2 exits: *Fac x2) -4/Factory -4/Waste -4/Factory -4/Armory History --------- Turn | Location | Event 24 | -11/Scrapyard | Discovered new exit (range 16) 132 | -11/Scrapyard | Entered Materials 315 | -10/Materials | Build established: Mutant 347 | -10/Materials | Discovered new exit (range 8) 464 | -10/Materials | Discovered new exit (range 15) 538 | -10/Materials | Discovered new exit (range 5) 746 | -10/Materials | Discovered new exit (range 7) 900 | -10/Materials | Repaired Seismic Detector? 1009 | -10/Materials | Discovered new exit (range 16) 1543 | -10/Materials | Learned Storage emergency access door positions 1588 | -10/Materials | Learned location of Recycling (-7) 1624 | -10/Materials | Identified exit to Subcaves 1624 | -10/Materials | Learned location of 1 exit from Materials 1650 | -10/Materials | Loaded intel: 7 trap records 1734 | -10/Materials | Learned 4 Subcaves zone layouts 1848 | -10/Materials | Entered Mines 1848 | -10/Mines | Accompanied by 1 ally 1856 | -10/Mines | Discovered new exit (range 12) 2581 | -10/Mines | Learned location of Zion (-7) 2714 | -10/Mines | Entered Materials 2714 | -9/Materials | Evolved 2 slots: Utility x2 2715 | -9/Materials | Identified exit to Mines 2716 | -9/Materials | Identified exit to Materials 3069 | -9/Materials | Destroyed 7 combat bots 3141 | -9/Materials | Repaired Lgt. Treads 3182 | -9/Materials | Repaired Pulse Rifle 3211 | -9/Materials | Repaired Lgt. Treads 3250 | -9/Materials | Repaired Broken Lgt. Treads 3306 | -9/Materials | Central database locked down 3634 | -9/Materials | Discovered exit to Materials (range 12) 3861 | -9/Materials | Build established: Scavenger-Mutant 4523 | -9/Materials | Learned Storage trap positions 4639 | -9/Materials | Discovered exit to Materials (range 16) 4770 | -9/Materials | Loaded intel: 10 trap records 5690 | -9/Materials | Build established: Mutant 5914 | -9/Materials | First assault squad dispatched 5975 | -9/Materials | Core integrity fell below 50% 6223 | -9/Materials | Entered Mines 6230 | -9/Mines | Received a Mining Laser from a helpful Derelict 6266 | -9/Mines | Met a Derelict bent on vengeance 6383 | -9/Mines | Discovered exit to Materials (range 14) 6561 | -9/Mines | Assisted by bots powering up and referring to "LRC-V3" 6655 | -9/Mines | Received a Rocket Launcher from a helpful Derelict 6789 | -9/Mines | Met a Derelict shopkeep closing up shop 7025 | -9/Mines | Learned 2 Materials zone layouts 7035 | -9/Mines | Deemed a non-threat by the Exiles lab entrance 7035 | -9/Mines | Discovered new exit (range 5) 7096 | -9/Mines | Discovered exit to Materials (range 10) 7145 | -9/Mines | Found a damaged Exp. Sensor Array with a note attached 7149 | -9/Mines | Found Prototype Device 7229 | -9/Mines | Entered Exiles 7229 | -9/Exiles | Accompanied by 3 allies 7230 | -9/Exiles | Identified exit to Mines 7270 | -9/Exiles | Met 8R-AWN 7298 | -9/Exiles | Met EX-HEX 7354 | -9/Exiles | Met EX-BIN 7374 | -9/Exiles | Met EX-DEC 7449 | -9/Exiles | Visited The Gauntlet 7901 | -9/Exiles | Entered Mines 7901 | -8/Mines | Accompanied by 3 allies 8027 | -8/Mines | Lost 3 allies 8300 | -8/Mines | Discovered exit to Materials (range 15) 8324 | -8/Mines | Entered Materials 8324 | -8/Materials | Evolved 2 slots: Propulsion x2 9303 | -8/Materials | Build established: Scavenger-Mutant 9351 | -8/Materials | Repaired Lyr. Light Armor Plating? 9430 | -8/Materials | Lost 3 parts (2u1w) 9588 | -8/Materials | Discovered new exit (range 16) 9897 | -8/Materials | Identified Exp. Sensor Array 10225 | -8/Materials | System corruption reached 10% 10296 | -8/Materials | Build established: Mutant 10838 | -8/Materials | Learned Storage emergency access door positions 10847 | -8/Materials | Learned 4 Factory zone layouts 10848 | -8/Materials | Identified exit to Factory 10849 | -8/Materials | Learned Factory garrison access intel 10863 | -8/Materials | Learned location of 1 exit from Lower Caves 10886 | -8/Materials | Learned location of 1 exit from Recycling 11219 | -8/Materials | Entered Factory 11219 | -7/Factory | Evolved 2 slots: Power x1, Utility x1 11220 | -7/Factory | Identified exit to Factory 11220 | -7/Factory | Identified exit to Lower Caves 11222 | -7/Factory | Loaded intel: 4 garrison access locations 12010 | -7/Factory | Identified exit to Storage 12196 | -7/Factory | Repaired Imp. Medium Armor Plating 12543 | -7/Factory | Garrison activated, responded to threat 12677 | -7/Factory | Entered Lower Caves 12678 | -7/Lower Caves | Identified exit to Lower Caves 12852 | -7/Lower Caves | Encountered a Warlord checkpoint 13357 | -7/Lower Caves | Entered another Lower Caves area 13387 | -7/Lower Caves | Discovered exit to Factory (range 4) 13404 | -7/Lower Caves | Attracted the attention of an 0b10 checkpoint 14518 | -7/Lower Caves | Learned Factory non-interactive machine intel 14957 | -7/Lower Caves | Discovered new exit (range 5) 14966 | -7/Lower Caves | Entered Zion 15060 | -7/Zion | System corruption cleaned by Quarantine Array 15100 | -7/Zion | Discovered new exit (range 9) 15522 | -7/Zion | Learned location of Storage (-7) 15759 | -7/Zion | Given A8's code to call for help 15841 | -7/Zion | Met Imprinter 15921 | -7/Zion | Acquired unknown access codes intercepted by a Zionite 16095 | -7/Zion | Found CR-A16's Pointy Stick 16283 | -7/Zion | Learned 8 Factory zone layouts 16320 | -7/Zion | Learned Factory security intel 16355 | -7/Zion | Given the Hacking Drone Bay 16439 | -7/Zion | Found Prototype Device 16439 | -7/Zion | Identified Hacking Drone Bay 16702 | -7/Zion | Found Prototype Special Weapon 16702 | -7/Zion | Identified RU-N14's Throwing Claymores 16713 | -7/Zion | Found RU-N14's Throwing Claymores 16724 | -7/Zion | Found RU-N14's Throwing Claymores 16730 | -7/Zion | Found RU-N14's Throwing Claymores 17359 | -7/Zion | Enhanced Grunt warped into view, answering call for help 17365 | -7/Zion | Opened final containment barrier to the Deep Caves 17385 | -7/Zion | Enhanced Grunt warped into view, answering call for help 17492 | -7/Zion | Discovered new exit (range 3) 17492 | -7/Zion | Saw the warning signs outside the Deep Caves entrance 17497 | -7/Zion | Entered Deep Caves 17497 | -7/Deep Caves | Accompanied by 2 allies 17916 | -7/Deep Caves | Attacked by Z-Imprinter 17928 | -7/Deep Caves | Destroyed Z-Imprinter 18011 | -7/Deep Caves | Found Prototype Protection 18011 | -7/Deep Caves | Identified Zio. Weapon Casing 18155 | -7/Deep Caves | Z-Facility disabled 18207 | -7/Deep Caves | Found Zio. Weapon Casing 18214 | -7/Deep Caves | Lost 3 parts (1n1u1w) 18290 | -7/Deep Caves | Found Prototype Protection 18290 | -7/Deep Caves | Identified Zio. Heavy Carapace 18360 | -7/Deep Caves | Build established: Scavenger-Mutant 18368 | -7/Deep Caves | Found Zio. Heavy Carapace 18473 | -7/Deep Caves | Found Zio. Weapon Casing 19287 | -7/Deep Caves | Discovered new exit (range 7) 19772 | -7/Deep Caves | Spotted AG-35572 19803 | -7/Deep Caves | Destroyed AG-35572 19907 | -7/Deep Caves | Spotted AG-24608 20056 | -7/Deep Caves | Core integrity fell below 50% 20066 | -7/Deep Caves | Destroyed AG-24608 20093 | -7/Deep Caves | Lost 4 parts (1n3u) 20487 | -7/Deep Caves | Triggered Deep Caves wall 20487 | -7/Deep Caves | Spotted AS-95220 20492 | -7/Deep Caves | Exposed GOLEM chamber 20503 | -7/Deep Caves | Spotted AS-71561 20506 | -7/Deep Caves | Destroyed AS-95220 20509 | -7/Deep Caves | Destroyed AS-71561 20538 | -7/Deep Caves | Destroyed 36 combat bots 20616 | -7/Deep Caves | Found GOLEM Unit 20671 | -7/Deep Caves | Found GOLEM Unit 20678 | -7/Deep Caves | Found GOLEM Unit 21088 | -7/Deep Caves | Build established: Golem 21439 | -7/Deep Caves | Found Prototype Flight Unit 21439 | -7/Deep Caves | Identified Flying Fortress v7 21767 | -7/Deep Caves | Found GOLEM Unit 23074 | -7/Deep Caves | Entered Proximity Caves 23082 | -6/Proximity Caves | Spotter reported a threat 23082 | -6/Proximity Caves | Spotter reported a threat 23086 | -6/Proximity Caves | Spotted B-75 Beast 23988 | -6/Proximity Caves | Attracted the attention of an 0b10 checkpoint 24005 | -6/Proximity Caves | Core integrity fell below 20% 24451 | -6/Proximity Caves | Discovered exit to Factory (range 6) 24464 | -6/Proximity Caves | Entered Factory 24464 | -6/Factory | Evolved 2 slots: Utility x2 24465 | -6/Factory | Identified exit to Lower Caves 24467 | -6/Factory | Loaded intel: 209 non-interactive machine locations 24814 | -6/Factory | Search patrols dispatched 24827 | -6/Factory | Build established: Hacker-Golem 25360 | -6/Factory | Found Launcher Loader 25659 | -6/Factory | Build established: Golem 25825 | -6/Factory | Entered Lower Caves 25849 | -6/Lower Caves | Attracted the attention of an 0b10 checkpoint 25917 | -6/Lower Caves | Learned 8 Factory zone layouts 25934 | -6/Lower Caves | Learned Factory terminal intel 26729 | -6/Lower Caves | Discovered new exit (range 15) 26764 | -6/Lower Caves | Entered another Lower Caves area 27099 | -6/Lower Caves | Encountered a Warlord checkpoint 27378 | -6/Lower Caves | Learned Factory security intel 27783 | -6/Lower Caves | Spotted B-75 Beast 27832 | -6/Lower Caves | Revealed the true nature of CR-A16's Pointy Stick 27835 | -6/Lower Caves | Destroyed B-75 Beast 28103 | -6/Lower Caves | Discovered new exit (range 8) 28787 | -6/Lower Caves | Entered Data Miner 28790 | -6/Data Miner | Discovered new exit (range 6) 28837 | -6/Data Miner | Met Data Miner 28879 | -6/Data Miner | Learned location of Section 7 (-2) 28879 | -6/Data Miner | Acquired the access code to Warlord's prototype stash 28925 | -6/Data Miner | Received God Mode back door access code from Data Miner 29346 | -6/Data Miner | Data Conduit disabled 29451 | -6/Data Miner | Core integrity fell below 50% 29468 | -6/Data Miner | Entered Proximity Caves 29499 | -5/Proximity Caves | Lost 4 parts (1p1n2u) 29965 | -5/Proximity Caves | Discovered new exit (range 80) 30173 | -5/Proximity Caves | Attracted the attention of an 0b10 checkpoint 30297 | -5/Proximity Caves | Entered Factory 30297 | -5/Factory | Evolved 2 slots: Utility x2 30298 | -5/Factory | Identified exit to Factory 30300 | -5/Factory | Loaded intel: 28 terminal locations 30400 | -5/Factory | Identified exit to Upper Caves 30400 | -5/Factory | Identified exit to Extension 30566 | -5/Factory | Repaired Hrd. Light Armor Plating 30612 | -5/Factory | Repaired Hrd. Light Armor Plating 30744 | -5/Factory | Fabricated Med. Reactive Plating (x2) 30882 | -5/Factory | Discovered exit to Factory (range 32) 31332 | -5/Factory | Entered Extension 31892 | -5/Extension | Spotted B-75 Beast 32028 | -5/Extension | Rescued a captive Derelict 32190 | -5/Extension | Rescued a captive Derelict 32263 | -5/Extension | Crushed by falling debris 32294 | -5/Extension | Lost 4 parts (3u1w) 32455 | -5/Extension | Build established: Commander-Golem 32632 | -5/Extension | Disrupted transfer network 32708 | -5/Extension | Destroyed B-75 Beast 32734 | -5/Extension | Spotted B-75 Beast 32738 | -5/Extension | Lost 6 allies 32761 | -5/Extension | Destroyed B-75 Beast 32856 | -5/Extension | Discovered exit to Factory (range 3) 32992 | -5/Extension | Build established: Golem 33059 | -5/Extension | Lost 3 allies 33432 | -5/Extension | First assault squad dispatched 33589 | -5/Extension | Rescued a captive Derelict 33872 | -5/Extension | Rescued a captive Derelict 33874 | -5/Extension | Rescued a captive Derelict 33957 | -5/Extension | Rescued A7 34101 | -5/Extension | Build established: Commander-Golem 34104 | -5/Extension | Discovered exit to Factory (range 10) 34106 | -5/Extension | Discovered new exit (range 6) 34139 | -5/Extension | Entered Cetus 34139 | -5/Cetus | Accompanied by 7 allies (A7) 34144 | -5/Cetus | Acquired a Cetus Manufacturing Module code from A7 34176 | -5/Cetus | Spotted Cetus Guard 34176 | -5/Cetus | Spotted Cetus Guard 34182 | -5/Cetus | Spotted Cetus Guard 34185 | -5/Cetus | Spotted Cetus Guard 34192 | -5/Cetus | Destroyed Cetus Guard 34202 | -5/Cetus | Allies destroyed Cetus Guard 34205 | -5/Cetus | Destroyed Cetus Guard 34208 | -5/Cetus | Allies destroyed Cetus Guard 34232 | -5/Cetus | System corruption reached 10% 34234 | -5/Cetus | Lost 6 allies 34598 | -5/Cetus | Discovered exit to Factory (range 16) 34631 | -5/Cetus | Build established: Scavenger-Golem 34731 | -5/Cetus | Started Cetus Manufacturing Module 34756 | -5/Cetus | Manufactured an Enhanced Grunt 34781 | -5/Cetus | Manufactured an Enhanced Grunt 34806 | -5/Cetus | Manufactured an Enhanced Grunt 34831 | -5/Cetus | Manufactured an Enhanced Grunt 34856 | -5/Cetus | Manufactured an Enhanced Grunt 34889 | -5/Cetus | Security sweep announced 34939 | -5/Cetus | Discovered new exit (range 15) 34985 | -5/Cetus | Escorted A7 to Cetus Mainframe 35082 | -5/Cetus | Spotted Cetus Guard 35082 | -5/Cetus | Spotted Cetus Guard 35092 | -5/Cetus | Spotted Cetus Guard 35093 | -5/Cetus | Spotted Cetus Guard 35096 | -5/Cetus | Allies destroyed Cetus Guard 35099 | -5/Cetus | Allies destroyed Cetus Guard 35115 | -5/Cetus | Allies destroyed Cetus Guard 35118 | -5/Cetus | Allies destroyed Cetus Guard 35125 | -5/Cetus | Discovered exit to Factory (range 16) 35142 | -5/Cetus | Met Revision 17 35297 | -5/Cetus | Entered Archives 35297 | -5/Archives | Accompanied by 5 allies (A7) 35302 | -5/Archives | Received a hacking code to weaken MAIN.C 35442 | -5/Archives | Discovered new exit (range 16) 35512 | -5/Archives | Unable to access archive contents 35536 | -5/Archives | Unable to access archive contents 35540 | -5/Archives | Discovered new exit (range 15) 35591 | -5/Archives | Unable to access archive contents 35620 | -5/Archives | Unable to access archive contents 35625 | -5/Archives | Discovered exit to Factory (range 16) 36916 | -5/Archives | Entered Hub_04(d) 36916 | -5/Hub_04(d) | Accompanied by 3 allies 37302 | -5/Hub_04(d) | Discovered exit to Factory (range 13) 37661 | -5/Hub_04(d) | Network Hub disabled 37661 | -5/Hub_04(d) | Network Hub disabled 37816 | -5/Hub_04(d) | First assault squad dispatched 38008 | -5/Hub_04(d) | Discovered exit to Factory (range 8) 38047 | -5/Hub_04(d) | System corruption reached 30% 38051 | -5/Hub_04(d) | Entered Factory 38051 | -4/Factory | Evolved 2 slots: Propulsion x1, Utility x1 38128 | -4/Factory | Allied Derelicts emerged from ambush trap array 38211 | -4/Factory | Sucked down chute 38211 | -4/Factory | Entered Waste 38212 | -4/Waste | Met a frightened Derelict 38226 | -4/Waste | EMP discharged 38226 | -4/Waste | Found Corrupted Unknown Device 38276 | -4/Waste | Spotted C-40 Crusher 38278 | -4/Waste | Spotted C-40 Crusher 38279 | -4/Waste | Crushed by Compactor (0 parts destroyed, 1 dropped) 38282 | -4/Waste | Crushed by Compactor (1 part destroyed) 38291 | -4/Waste | Spotted C-40 Crusher 38316 | -4/Waste | Crushed by Compactor (1 part destroyed, 2 dropped) 38319 | -4/Waste | Crushed by Compactor (1 part destroyed) 38322 | -4/Waste | Crushed by Compactor (1 part destroyed) 38325 | -4/Waste | Crushed by Compactor (1 part destroyed, 1 dropped) 38325 | -4/Waste | Crushed by Compactor (1 part destroyed) 38326 | -4/Waste | EMP discharged 38326 | -4/Waste | System corruption reached 10% 38327 | -4/Waste | Destroyed C-40 Crusher 38331 | -4/Waste | Spotted C-40 Crusher 38331 | -4/Waste | Destroyed C-40 Crusher 38347 | -4/Waste | Destroyed C-40 Crusher 38351 | -4/Waste | Spotted C-40 Crusher 38356 | -4/Waste | Lost 5 parts (3u2w) 38367 | -4/Waste | Destroyed C-40 Crusher 38382 | -4/Waste | Crushed by Compactor (1 part destroyed) 38383 | -4/Waste | Destroyed C-40 Crusher 38396 | -4/Waste | 3 allies followed down the chute 38426 | -4/Waste | EMP discharged 38431 | -4/Waste | Spotted C-40 Crusher 38439 | -4/Waste | Destroyed C-40 Crusher 38489 | -4/Waste | Discovered new exit (range 16) 38515 | -4/Waste | Entered Factory 38515 | -4/Factory | Accompanied by 4 allies 38672 | -4/Factory | Lost 4 allies 38688 | -4/Factory | Assembled infested ambush trap array 38776 | -4/Factory | Destroyed 11 combat bots 38826 | -4/Factory | Lost 12 parts (2p2n7u1w) 38956 | -4/Factory | Lost 3 parts (2n1u) 39212 | -4/Factory | System corruption reached 30% 39274 | -4/Factory | Lost 11 parts (1p4n3u3w) 39447 | -4/Factory | Discovered new exit (range 11) 39466 | -4/Factory | Core integrity fell below 50% 39467 | -4/Factory | Entered Armory 39488 | -4/Armory | Lost 3 parts (1n1u1w) 39898 | -4/Armory | Core integrity fell below 20% 39937 | -4/Armory | Lost 18 parts (2p4n9u3w) 40097 | -4/Armory | Destroyed by D-63 Destroyer with Heavy Rocket Launcher Last Messages --------------- 40077_ Slug penetrates Wall. 40080_ System corrupted: Energy discharge (-20). 40080_ Slug penetrates Wall. 40081_ Adv. Reaction Control System destroyed. 40082_ The unstable cave ceiling collapses. 40083_ Slug penetrates D-63 Destroyer. 40083_ D-63 Destroyer knocked back. 40084_ Critical hit (Burn: +37). 40088_ D-63 Destroyer knocked back. 40089_ Myomer Leg destroyed. 40090_ The unstable cave ceiling collapses. 40091_ System corrupted: Hvy. Flak Cannon jammed. 40092_ The unstable cave ceiling collapses. 40092_ ALERT: Rogue bot located, Programmers report to Armory Zone 5Y. 40094_ The unstable cave ceiling collapses. 40095_ Myomer Leg destroyed. 40096_ Hvy. Flak Cannon destroyed. [Achievement: I Think I Know What's Going On] [Achievement: Torch] Map ----- +----------------------------------------------------+ | ??????????????????#???#?#??????? | | ?#??????????????????????????##?# | | ??????????##?#????##?????????#?? | | ???#???????#???##????#????????#? | | ??#???????#????##????#?#?#?????? | | ?????#####?#??????#############? | | ??#??####??#?#???#############?# | | ####### ######?#####!!!!!!!!##?? | | ??##### ######????##!!!!!!!!##?? | | "" # # # ###??###"" "" ""###? | | ?? # ####??### ##?# | | ?? ##%"## ######### ###? | | ? # % #"############+########? | | ? + "##? | | ?? # / = = #### | | ?? # % ""###"########+#######?? | | ? #]!!*"######## !!#?? | | ? #=!%]=######## !#?# | | ??##[^^! #####?## ##? | | ??##%=![ ##????## d ### | | ??##[!!* ###??### """ """ ##? | | "?###= "###????## "" #? | | ??### "######### "" #? | | ???## "#?? /g %! | | ???#" ##?? ??? # ! # | | ???## ##????? # ""T" @ #? | | ???# ?? ???? # """" # | | ???? ?????? ??# # | | ???? ?????????##### # | | ???? ???????????# # | | ????""##???????????# ## | | ?????###???????????# #? | | ???????????????????# ### #? | | ???????????????????# ##??##? | | ???????????????????######??????? | | ???????????????????????????????? | | ???????????????????????????????? | | ???????????????????????????????? | | ???????????????????????????????? | | ???????????????????????????????? | | ???????????????????????????????? | | ???????????????????????????????? | | ???????????????????????????????? | | ???????????????????????????????? | | ???????????????????????????????? | | ???????????????????????????????? | | ???????????????????????????????? | | ???????????????????????????????? | | ???????????????????????????????? | | ???????????????????????????????? | +----------------------------------------------------+ Best States ------------- Heat Dissipation 127 Coolant Potential 50 Energy Generation 45 Energy Capacity 1700 Matter Stores 300 Matter Capacity 300 Sight Range 16 Robot Scan Range 20 Terrain Scan Range 16 Terrain Scan Density 110 Jamming Range 16 Additional Mass Support 20 Base Temperature (-) 200 EM Shielding 2 Armor Coverage 1550 Resistance: KI 30 Resistance: TH 15 Resistance: EX 15 Resistance: EM 15 Resistance: I 15 Resistance: S 15 Resistance: P 15 Core Shielding 20 Power Shielding 66 Weapon Shielding 100 Weapon Cycling 15 Evasion (%) 55 Core Analysis 9 Armor Integrity Analysis 30 Recoil Reduction 5 Particle Charging 27 Salvage Targeting 2 Offensive Hacking 33 Defensive Hacking 12 Item Schematics ----------------- Imp. Flight Unit | -9/Materials | Scanalyzed Adv. ECM Suite | -7/Zion | Archive Imp. Thermal Generator | -7/Zion | Archive Med. Reactive Plating | -7/Zion | Archive Drone Bay | -7/Zion | Archive Coolant Injector | -7/Zion | Archive System Guard | -7/Zion | Archive Energy Filter | -7/Zion | Archive Adv. Plasma Cannon | -7/Zion | Archive Imp. Carbon-fiber Leg | -7/Zion | Archive Component Analysis Suite | -7/Zion | Archive Hvy. Flak Cannon | -7/Zion | Archive Recoil Nullifier | -7/Zion | Archive Imp. Medium Armor Plating | -7/Zion | Archive Hvy. Plasma Cannon | -7/Zion | Archive Phasing Sabre | -7/Zion | Free Combat Drone Bay | -6/Data Miner | Free Lgt. Regenerative Plating | -6/Data Miner | Free Cld. Gravmag System | -6/Data Miner | Free Imp. Energy Well | -6/Data Miner | Free Cld. Plasma Rifle | -6/Data Miner | Free Adv. Medium Treads | -6/Data Miner | Free Imp. Force Booster | -6/Data Miner | Free Hvy. Disruptor Cannon | -6/Data Miner | Free Adv. Datajack | -6/Data Miner | Free Imp. Linear Gravjet | -6/Data Miner | Free Nova Cannon | -6/Data Miner | Free Adv. Component Analysis Suite | -6/Data Miner | Free Robot Schematics ------------------ L-31 Rogue | -7/Zion | Archive R-06 Scavenger | -7/Zion | Archive X-57 Shotgunner | -7/Zion | Archive D-83 Annihilator | -7/Zion | Archive B-48 Gladiator | -6/Data Miner | Free G-50 Soldier | -6/Data Miner | Free S-27 Virus | -6/Data Miner | Free H-66 Slayer | -6/Data Miner | Free W-44 Eye | -6/Data Miner | Free Fabricated ------------ Med. Reactive Plating | x2 | -5/Factory Alien Tech Used ----------------- None Achievements -------------- I Think I Know What's Going On Main Advantage Prison Break Project G-00 Revising The Future Torch Challenges ------------ None Game ------ Seed SuperquantumCryofiberFlamer Manual? 0 Play Time 04:54:47 Cumulative 141.0 hours Start 2024.09.04 @ 21:38:03 End 2024.09.05 @ 11:30:06 Sessions 3 Manual Loads 0 Difficulty Rogue Special Mode None Game No. 84 Rogue 71 Adventurer 13 Explorer 0 Win Type - Total 2 Types 2/0/0/0/0/0/0/0/0 Lore% 50 Gallery% 62 Achievement% 53 Wizard Run 0 Options --------- Layout 2 ASCII 0 Keyboard 1 Movement Numpad Keybinds 0 Fullscreen 2 Font 16/Swanston Map View 55x47 Zoom Use 0% Tactical HUD 1 Map Filters NONE Filters NONE Steam 0 RUN: 41993c9b-ef76-4626-94f9-4e5785e001a5